bitfinex-derivatives/quotes_BNBF0:USTF0_20250908
["timestamp","ask_amount","ask_price","bid_price","bid_amount"]
[1757368343840,0.62498035,879.66,877.84,1.5172356]
[1757368344141,0.62498035,879.65,877.84,1.5172356]
[1757368344337,0.62498035,879.64,877.84,1.5172356]
[1757368344641,0.62498035,879.63,877.84,1.5172356]
[1757368344937,0.62498035,879.62,877.84,1.5172356]
[1757368345137,0.62498035,879.61,877.84,1.5172356]
[1757368345441,0.62498035,879.6,877.84,1.5172356]
[1757368345641,0.62498035,879.59,877.84,1.5172356]
[1757368345842,0.62498035,879.58,877.83,1.5172356]
[1757368346141,0.62498035,879.57,877.83,1.5172356]
[1757368346344,0.62498035,879.56,877.84,1.5172356]
[1757368346542,0.62498035,879.55,877.84,1.5172356]
[1757368346741,0.62498035,879.54,877.81,1.5172356]
[1757368346939,0.62498035,879.53,877.81,1.5172356]
[1757368347143,0.62498035,879.52,877.81,1.5172356]
[1757368347342,0.62498035,879.51,877.81,1.5172356]
[1757368347539,0.62498035,879.5,877.79,1.5172356]
[1757368347840,0.62498035,879.49,877.78,1.5172356]
[1757368348038,0.62498035,879.48,877.78,1.5172356]
[1757368348240,0.62498035,879.47,877.78,1.5172356]
[1757368348438,0.62498035,879.46,877.78,1.5172356]
[1757368348738,0.62498035,879.45,877.78,1.5172356]
[1757368349042,0.62498035,879.44,877.78,1.5172356]
[1757368349242,0.62498035,879.43,877.78,1.5172356]
[1757368349442,0.62498035,879.42,877.78,1.5172356]
[1757368349642,0.62498035,879.41,877.78,1.5172356]
[1757368349840,0.62498035,879.4,877.79,1.5172356]
[1757368350143,0.62498035,879.39,877.79,1.5172356]
[1757368350343,0.62498035,879.38,877.79,1.5172356]
[1757368350544,0.62498035,879.37,877.79,1.5172356]
[1757368350744,0.62498035,879.36,877.79,1.5172356]
[1757368351044,0.62498035,879.35,877.79,1.5172356]
[1757368351340,0.62498035,879.34,877.79,1.5172356]
[1757368351544,0.62498035,879.33,877.8,1.5172356]
[1757368351742,0.62498035,879.32,877.8,1.5172356]
[1757368351941,0.62498035,879.31,877.8,1.5172356]
[1757368352145,0.62498035,879.3,877.82,1.5172356]
[1757368352340,0.62498035,879.29,877.86,1.5172356]
[1757368352560,0.62498035,879.28,877.86,1.5172356]
[1757368352842,0.62498035,879.27,877.86,1.5172356]
[1757368353040,2.5418714,880.05,877.57,0.19763575]
[1757368353041,0.62498035,879.26,877.84,1.5172356]
[1757368353244,0.62498035,879.25,877.84,1.5172356]
[1757368353450,0.62498035,879.24,877.84,1.5172356]
[1757368353648,0.62498035,879.23,877.58,1.5172356]
[1757368353848,0.62498035,879.22,877.57,0.19763575]
[1757368354051,0.62498035,879.21,877.57,0.19763575]
[1757368354251,0.62498035,879.2,877.57,0.19763575]
[1757368354451,0.62498035,879.19,877.57,0.19763575]
[1757368354752,0.62498035,879.18,877.57,0.19763575]
[1757368354952,0.62498035,879.17,877.57,0.19763575]
[1757368355150,0.62498035,879.16,877.57,0.19763575]
[1757368355347,0.62498035,879.15,877.57,0.19763575]
[1757368355651,0.62498035,879.14,877.57,0.19763575]
[1757368355849,0.62498035,879.13,877.57,0.19763575]
[1757368356048,0.62498035,879.12,877.57,0.19763575]
[1757368356249,1.5309046,879.31,877.57,0.19763575]
[1757368356250,0.62498035,879.11,877.57,0.19763575]
[1757368356449,0.62498035,879.1,877.57,0.19763575]
[1757368356649,0.62498035,879.09,877.57,0.19763575]
[1757368356848,0.62498035,879.08,877.57,0.19763575]
[1757368357052,0.62498035,879.07,877.57,0.19763575]
[1757368357252,0.62498035,879.06,877.57,0.19763575]
[1757368357449,0.62498035,879.05,877.57,0.19763575]
[1757368357751,1.5309046,879.33,877.57,0.19763575]
[1757368357752,0.62498035,879.04,877.57,0.19763575]
[1757368358053,0.62498035,879.03,877.57,0.19763575]
[1757368358255,0.62498035,879.02,877.57,0.19763575]
[1757368358454,0.62498035,879.01,877.57,0.19763575]
[1757368358754,0.62498035,879.0,877.57,0.19763575]
[1757368359054,1.5309046,879.35,877.57,0.19763575]
[1757368359350,0.62643373,879.34,877.57,0.19763575]
[1757368359652,0.62643373,879.33,877.57,0.19763575]
[1757368359951,0.62643373,879.32,877.57,0.19763575]
[1757368360249,0.62643373,879.31,877.57,0.19763575]
[1757368360449,0.62643373,879.3,877.57,0.19763575]
[1757368360652,0.62643373,879.29,877.57,0.19763575]
[1757368360852,0.62643373,879.28,877.57,0.19763575]
[1757368361055,0.62643373,879.27,877.57,0.19763575]
[1757368361356,0.62643373,879.26,877.57,0.19763575]
[1757368361554,0.62643373,879.25,877.57,0.19763575]
[1757368361752,0.62643373,879.24,877.57,0.19763575]
[1757368362051,3.5710953,880.64,877.57,0.19763575]
[1757368362052,0.62643373,879.23,877.57,1.71487135]
[1757368362257,0.62643373,879.22,877.57,1.71487135]
[1757368362454,0.62643373,879.21,877.57,1.71487135]
[1757368362657,0.62643373,879.2,877.57,1.71487135]
[1757368362857,0.62643373,879.19,877.57,1.71487135]
[1757368363057,0.62643373,879.18,877.57,1.71487135]
[1757368363356,0.62643373,879.17,877.57,1.71487135]
[1757368363557,0.62643373,879.16,877.62,1.5172356]
[1757368363751,0.62643373,879.15,877.65,1.5172356]
[1757368363954,0.62643373,879.14,877.65,1.5172356]
[1757368364257,0.62643373,879.13,877.65,1.5172356]
[1757368364456,0.62643373,879.12,877.65,1.5172356]
[1757368364654,1.5309046,879.19,877.65,1.5172356]
[1757368364655,0.62643373,879.11,877.65,1.5172356]
[1757368364853,0.62643373,879.1,877.65,1.5172356]
[1757368365056,0.62643373,879.09,877.65,1.5172356]
[1757368365257,1.5309046,879.19,877.65,1.5172356]
[1757368365258,0.62643373,879.08,877.65,1.5172356]
[1757368365455,0.62643373,879.07,877.64,1.5172356]
[1757368365654,0.62643373,879.06,877.64,1.5172356]
[1757368365856,0.62643373,879.05,877.64,1.5172356]
[1757368366053,0.62643373,879.04,877.64,1.5172356]
[1757368366258,0.62643373,879.03,877.64,1.5172356]
[1757368366458,1.5309046,879.21,877.63,1.5172356]
[1757368366655,0.62616358,879.2,877.63,1.5172356]
[1757368366953,0.62616358,879.19,877.63,1.5172356]
[1757368367154,0.62616358,879.18,877.63,1.5172356]
[1757368367355,0.62616358,879.17,877.63,1.5172356]
[1757368367556,0.62616358,879.16,877.64,1.5172356]
[1757368367755,0.62616358,879.15,877.64,1.5172356]
[1757368367955,0.62616358,879.14,877.64,1.5172356]
[1757368368156,0.62616358,879.13,877.64,1.5172356]
[1757368368358,1.5309046,879.2,877.57,0.19763575]
[1757368368359,0.62616358,879.12,877.6,1.5172356]
[1757368368657,0.62616358,879.11,877.62,1.5172356]
[1757368368859,0.62616358,879.1,877.62,1.5172356]
[1757368369060,0.62616358,879.09,877.62,1.5172356]
[1757368369256,0.62616358,879.08,877.62,1.5172356]
[1757368369460,1.5309046,879.31,877.64,1.5172356]
[1757368369760,0.62608135,879.3,877.63,1.5172356]
[1757368369961,1.5309046,879.32,877.63,1.5172356]
[1757368369962,0.62608135,879.29,877.63,1.5172356]
[1757368370158,0.62608135,879.28,877.63,1.5172356]
[1757368370360,0.62608135,879.27,877.63,1.5172356]
[1757368370559,0.62608135,879.26,877.63,1.5172356]
[1757368370857,1.5309046,879.32,877.63,1.5172356]
[1757368370858,0.62608135,879.25,877.63,1.5172356]
[1757368371061,0.62608135,879.24,877.63,1.5172356]
[1757368371260,0.62608135,879.23,877.63,1.5172356]
[1757368371461,0.62608135,879.22,877.63,1.5172356]
[1757368371661,0.62608135,879.21,877.63,1.5172356]
[1757368371859,0.62608135,879.2,877.64,1.5172356]
[1757368372060,0.62608135,879.19,877.64,1.5172356]
[1757368372262,0.62608135,879.18,877.64,1.5172356]
[1757368372463,0.62608135,879.17,877.64,1.5172356]
[1757368372760,0.62608135,879.16,877.64,1.5172356]
[1757368372962,0.62608135,879.15,877.64,1.5172356]
[1757368373160,0.62608135,879.14,877.64,1.5172356]
[1757368373359,0.62608135,879.13,877.64,1.5172356]
[1757368373560,0.62608135,879.12,877.64,1.5172356]
[1757368373760,0.62608135,879.11,877.64,1.5172356]
[1757368373960,0.62608135,879.1,877.64,1.5172356]
[1757368374161,0.62608135,879.09,877.64,1.5172356]
[1757368374460,1.5309046,879.31,877.64,1.5172356]
[1757368374461,0.62608135,879.08,877.64,1.5172356]
[1757368374661,1.5309046,879.31,877.64,1.5172356]
[1757368374859,0.62608306,879.3,877.64,1.5172356]
[1757368375161,0.62608306,879.29,877.64,1.5172356]
[1757368375361,0.62608306,879.28,877.66,1.5172356]
[1757368375561,0.62608306,879.27,877.66,1.5172356]
[1757368375861,0.62608306,879.26,877.66,1.5172356]
[1757368376162,0.62608306,879.25,877.66,1.5172356]
[1757368376361,0.62608306,879.24,877.66,1.5172356]
[1757368376661,0.62608306,879.23,877.66,1.5172356]
[1757368376865,0.62608306,879.22,877.66,1.5172356]
[1757368377063,0.62608306,879.21,877.66,1.5172356]
[1757368377262,0.62608306,879.2,877.66,1.5172356]
[1757368377463,0.62608306,879.19,877.67,1.5172356]
[1757368377765,0.62608306,879.18,877.67,1.5172356]
[1757368377967,0.62608306,879.17,877.67,1.5172356]
[1757368378263,1.5309046,879.28,877.57,0.19763575]
[1757368378264,0.62608306,879.16,877.69,1.5172356]
[1757368378462,0.62608306,879.15,877.69,1.5172356]
[1757368378665,0.62608306,879.14,877.69,1.5172356]
[1757368378965,2.15698766,879.13,877.79,1.5172356]
[1757368379165,0.62608306,879.12,877.79,1.5172356]
[1757368379464,1.5309046,879.1,877.82,1.5172356]
[1757368379869,1.5309046,879.1,877.83,1.5172356]
[1757368381771,1.5309046,879.09,877.83,1.5172356]
[1757368384671,1.5309046,879.08,877.84,1.5172356]
[1757368385474,2.5418714,879.68,877.83,1.5172356]
[1757368385670,2.5418714,879.68,877.84,1.5172356]
[1757368385970,2.5418714,879.7,877.84,1.5172356]
[1757368386369,2.5418714,879.69,877.84,1.5172356]
[1757368387074,2.5418714,879.69,877.85,1.5172356]
[1757368387276,2.5418714,879.69,877.79,0.19764529]
[1757368387471,3.5710953,879.96,877.79,0.19764529]
[1757368388169,5.1015647,880.42,877.79,0.19764529]
[1757368389275,2.5418714,880.79,877.79,0.19764529]
[1757368390173,2.5418714,881.02,877.79,0.19764529]
[1757368390378,2.267798,881.01,877.79,0.19764529]
[1757368390573,8.1625035,881.27,877.79,0.19764529]
[1757368390574,1.133899,881.0,877.79,0.19764529]
[1757368390777,8.1625035,881.27,877.79,0.19764529]
[1757368390974,2.26763238,881.26,877.79,0.19764529]
[1757368391175,2.26763238,881.25,877.79,0.19764529]
[1757368391478,2.89068996,881.24,877.79,0.19764529]
[1757368391675,2.89068996,881.23,877.79,0.19764529]
[1757368391980,2.89068996,881.22,877.79,0.19764529]
[1757368392276,2.89068996,881.21,877.79,0.19764529]
[1757368392477,2.89068996,881.2,877.79,0.19764529]
[1757368392778,2.89068996,881.19,877.79,0.19764529]
[1757368392979,2.89068996,881.18,877.79,0.19764529]
[1757368393175,2.89068996,881.17,877.79,0.19764529]
[1757368393379,2.89068996,881.16,877.79,0.19764529]
[1757368393580,2.89068996,881.15,877.79,0.19764529]
[1757368393779,2.89068996,881.14,877.79,0.19764529]
[1757368393979,2.89068996,881.13,877.79,0.19764529]
[1757368394275,2.89068996,881.12,877.79,0.19764529]
[1757368394480,2.89068996,881.11,877.79,0.19764529]
[1757368394674,2.89068996,881.1,877.79,0.19764529]
[1757368394880,2.89068996,881.09,877.79,0.19764529]
[1757368395080,1.75687377,881.08,877.79,0.19764529]
[1757368395277,1.75687377,881.07,877.79,0.19764529]
[1757368395581,1.75687377,881.06,877.79,0.19764529]
[1757368395783,1.75687377,881.05,877.79,0.19764529]
[1757368395982,1.75687377,881.04,877.79,0.19764529]
[1757368396278,0.62305758,881.03,877.79,0.19764529]
[1757368396480,0.62305758,881.02,877.79,0.19764529]
[1757368396679,0.62305758,881.01,877.79,0.19764529]
[1757368396881,0.62305758,881.0,877.79,0.19764529]
[1757368397077,0.62305758,880.99,877.79,0.19764529]
[1757368397277,0.62305758,880.98,877.79,0.19764529]
[1757368397480,0.62305758,880.97,877.79,0.19764529]
[1757368397778,0.62305758,880.96,877.79,0.19764529]
[1757368397982,0.62305758,880.95,877.79,0.19764529]
[1757368398284,0.62305758,880.94,877.79,0.19764529]
[1757368398583,0.62305758,880.93,877.79,0.19764529]
[1757368398781,0.62305758,880.92,877.79,0.19764529]
[1757368398981,0.62305758,880.91,877.79,0.19764529]
[1757368399181,0.62305758,880.9,877.79,0.19764529]
[1757368399381,0.62305758,880.89,877.79,0.19764529]
[1757368399581,0.62305758,880.88,877.79,0.19764529]
[1757368399784,0.62305758,880.87,877.79,0.19764529]
[1757368399981,0.62305758,880.86,877.79,0.19764529]
[1757368400181,0.62305758,880.85,877.79,0.19764529]
[1757368400380,0.62305758,880.84,877.79,0.19764529]
[1757368400581,0.62305758,880.83,877.79,0.19764529]
[1757368400785,0.62305758,880.82,877.79,0.19764529]
[1757368400982,0.62305758,880.81,877.79,0.19764529]
[1757368401181,0.62305758,880.8,877.79,0.19764529]
[1757368401383,0.62305758,880.79,877.79,0.19764529]
[1757368401686,0.62305758,880.78,877.79,0.19764529]
[1757368401986,0.62305758,880.77,877.79,0.19764529]
[1757368402186,0.62305758,880.76,877.79,0.19764529]
[1757368402387,0.62305758,880.75,877.79,0.19764529]
[1757368402683,0.62305758,880.74,877.79,0.19764529]
[1757368402986,0.62305758,880.73,877.79,0.19764529]
[1757368403183,0.62305758,880.72,877.79,0.19764529]
[1757368403483,0.62305758,880.71,877.79,0.19764529]
[1757368403687,0.62305758,880.7,877.79,0.19764529]
[1757368403885,0.62305758,880.69,877.79,0.19764529]
[1757368404083,0.62305758,880.68,877.79,0.19764529]
[1757368404286,0.62305758,880.67,877.79,0.19764529]
[1757368404486,0.62305758,880.66,877.79,0.19764529]
[1757368404786,0.62305758,880.65,877.79,0.19764529]
[1757368404986,0.62305758,880.64,877.79,0.19764529]
[1757368405183,0.62305758,880.63,877.79,0.19764529]
[1757368405384,0.62305758,880.62,877.79,0.19764529]
[1757368405581,1.5245857,880.02,877.79,0.19764529]
[1757368405786,0.62305758,880.01,877.79,0.19764529]
[1757368406087,0.62305758,880.0,877.79,0.19764529]
[1757368406282,0.62305758,879.99,877.79,0.19764529]
[1757368406485,1.5245857,880.02,877.79,0.19764529]
[1757368406486,0.62305758,879.98,877.79,0.19764529]
[1757368406685,1.5245857,880.02,877.79,0.19764529]
[1757368406686,0.62305758,879.97,877.79,0.19764529]
[1757368406884,0.62305758,879.96,877.79,0.19764529]
[1757368407082,0.62305758,879.95,877.79,0.19764529]
[1757368407281,0.62305758,879.94,877.79,0.19764529]
[1757368407481,0.62305758,879.93,877.79,0.19764529]
[1757368407687,1.5245857,879.8,877.79,0.19764529]
[1757368407883,1.5245857,879.75,877.79,0.19764529]
[1757368408089,0.62305758,879.74,877.79,0.19764529]
[1757368408287,0.62305758,879.73,877.79,0.19764529]
[1757368408488,0.62305758,879.72,877.79,0.19764529]
[1757368408785,0.62305758,879.71,877.79,0.19764529]
[1757368408989,0.62305758,879.7,877.79,0.19764529]
[1757368409187,2.14764328,879.69,877.79,0.19764529]
[1757368409386,0.62305758,879.68,877.79,0.19764529]
[1757368409589,0.62305758,879.67,877.79,0.19764529]
[1757368409785,0.62305758,879.66,877.79,0.19764529]
[1757368409986,0.62305758,879.65,877.79,0.19764529]
[1757368410191,0.62305758,879.64,877.79,0.19764529]
[1757368410387,0.62305758,879.63,877.79,0.19764529]
[1757368410591,0.62305758,879.62,877.79,0.19764529]
[1757368410792,0.62305758,879.61,877.79,0.19764529]
[1757368411089,0.62305758,879.6,877.79,0.19764529]
[1757368411288,0.62305758,879.59,877.79,0.19764529]
[1757368411492,0.62305758,879.58,877.79,0.19764529]
[1757368411690,0.62305758,879.57,877.79,0.19764529]
[1757368411890,0.62305758,879.56,877.79,0.19764529]
[1757368412193,0.62305758,879.55,877.79,0.19764529]
[1757368412391,0.62305758,879.54,877.79,0.19764529]
[1757368412592,0.62305758,879.53,877.79,0.19764529]
[1757368412794,0.62305758,879.52,877.79,0.19764529]
[1757368412992,0.62305758,879.51,877.79,0.19764529]
[1757368413193,0.62305758,879.5,877.79,0.19764529]
[1757368413396,0.62305758,879.49,877.79,0.19764529]
[1757368413593,0.62305758,879.48,877.79,0.19764529]
[1757368413893,0.62305758,879.47,877.79,0.19764529]
[1757368414193,0.62305758,879.46,877.79,0.19764529]
[1757368414398,1.5245857,879.52,877.79,0.19764529]
[1757368414399,0.62305758,879.45,877.79,0.19764529]
[1757368414594,0.62305758,879.44,877.79,0.19764529]
[1757368414794,0.62305758,879.43,877.79,0.19764529]
[1757368415097,0.62284883,879.42,877.79,0.19764529]
[1757368415297,0.62284883,879.41,877.79,0.19764529]
[1757368415500,0.62284883,879.4,877.79,0.19764529]
[1757368415696,0.62284883,879.39,877.79,0.19764529]
[1757368415897,0.62284883,879.38,877.79,0.19764529]
[1757368416094,0.62284883,879.37,877.79,0.19764529]
[1757368416295,0.62284883,879.36,877.79,0.19764529]
[1757368416598,0.62284883,879.35,877.79,0.19764529]
[1757368416796,0.62284883,879.34,877.79,0.19764529]
[1757368416998,0.62284883,879.33,877.79,0.19764529]
[1757368417196,0.62284883,879.32,877.79,0.19764529]
[1757368417396,0.62284883,879.31,877.79,0.19764529]
[1757368417596,0.62284883,879.3,877.79,0.19764529]
[1757368417797,0.62284883,879.29,877.79,0.19764529]
[1757368417995,0.62284883,879.28,877.79,0.19764529]
[1757368418293,0.62284883,879.27,877.79,0.19764529]
[1757368418498,0.62284883,879.26,877.79,0.19764529]
[1757368418695,0.62284883,879.25,877.79,0.19764529]
[1757368418899,0.62284883,879.24,877.79,0.19764529]
[1757368419095,0.62284883,879.23,877.79,0.19764529]
[1757368419299,0.62284883,879.22,877.79,0.19764529]
[1757368419499,0.62284883,879.21,877.79,0.19764529]
[1757368419700,1.5245857,879.72,877.79,0.19764529]
[1757368419900,0.62300734,879.71,877.79,0.19764529]
[1757368420101,0.62300734,879.7,877.79,0.19764529]
[1757368420301,0.62300734,879.69,877.79,0.19764529]
[1757368420600,0.62300734,879.68,877.79,0.19764529]
[1757368420897,0.62300734,879.67,877.79,0.19764529]
[1757368421096,0.62300734,879.66,877.79,0.19764529]
[1757368421299,0.62300734,879.65,877.79,0.19764529]
[1757368421497,0.62300734,879.64,877.79,0.19764529]
[1757368421703,0.62300734,879.63,877.79,0.19764529]
[1757368421903,0.62300734,879.62,877.79,0.19764529]
[1757368422105,0.62300734,879.61,877.79,0.19764529]
[1757368422303,0.62300734,879.6,877.79,0.19764529]
[1757368422500,0.62300734,879.59,877.79,0.19764529]
[1757368422704,0.62300734,879.58,877.79,0.19764529]
[1757368423003,0.62300734,879.57,877.79,0.19764529]
[1757368423201,0.62300734,879.56,877.79,0.19764529]
[1757368423502,0.62300734,879.55,877.79,0.19764529]
[1757368423704,0.62300734,879.54,877.79,0.19764529]
[1757368423906,0.62300734,879.53,877.79,0.19764529]
[1757368424105,0.62300734,879.52,877.79,0.19764529]
[1757368424306,0.62300734,879.51,877.79,0.19764529]
[1757368424505,0.62300734,879.5,877.79,0.19764529]
[1757368424706,0.62300734,879.49,877.79,0.19764529]
[1757368424906,0.62300734,879.48,877.79,0.19764529]
[1757368425105,0.62300734,879.47,877.79,0.19764529]
[1757368425405,0.62300734,879.46,877.79,0.19764529]
[1757368425603,0.62300734,879.45,877.79,0.19764529]
[1757368425805,0.62300734,879.44,877.79,0.19764529]
[1757368426003,0.62300734,879.43,877.79,0.19764529]
[1757368426201,0.62300734,879.42,877.79,0.19764529]
[1757368426401,0.62300734,879.41,877.79,0.19764529]
[1757368426602,0.62300734,879.4,877.79,0.19764529]
[1757368426808,0.62300734,879.39,877.79,0.19764529]
[1757368427002,0.62300734,879.38,877.79,0.19764529]
[1757368427207,0.62300734,879.37,877.79,0.19764529]
[1757368427409,0.62300734,879.36,877.79,0.19764529]
[1757368427607,0.62300734,879.35,877.79,0.19764529]
[1757368427809,0.62300734,879.34,877.79,0.19764529]
[1757368428005,0.62300734,879.33,877.79,0.19764529]
[1757368428209,1.5245857,879.98,877.79,0.19764529]
[1757368428408,0.62308704,879.97,877.79,0.19764529]
[1757368428605,0.62308704,879.96,877.79,0.19764529]
[1757368428910,0.62308704,879.95,877.79,0.19764529]
[1757368429211,0.62308704,879.94,877.79,0.19764529]
[1757368429408,0.62308704,879.93,877.79,0.19764529]
[1757368429607,0.62308704,879.92,877.79,0.19764529]
[1757368429807,0.62308704,879.91,877.79,0.19764529]
[1757368430007,1.5245857,879.59,877.85,1.5172356]
[1757368430212,0.62308704,879.58,877.85,1.5172356]
[1757368430412,0.62308704,879.57,877.85,1.5172356]
[1757368430612,0.62308704,879.56,877.85,1.5172356]
[1757368430912,0.62308704,879.55,877.85,1.5172356]
[1757368431111,0.62308704,879.54,877.85,1.5172356]
[1757368431309,0.62308704,879.53,877.85,1.5172356]
[1757368431513,0.62308704,879.52,877.85,1.5172356]
[1757368431809,0.62308704,879.51,877.85,1.5172356]
[1757368432012,0.62308704,879.5,877.85,1.5172356]
[1757368432213,0.62308704,879.49,877.85,1.5172356]
[1757368432411,1.5245857,879.59,877.85,1.5172356]
[1757368432412,0.62308704,879.48,877.85,1.5172356]
[1757368432610,0.62308704,879.47,877.85,1.5172356]
[1757368432809,0.62308704,879.46,877.85,1.5172356]
[1757368433013,0.62308704,879.45,877.79,1.71488089]
[1757368433215,0.62308704,879.44,877.79,1.71488089]
[1757368433512,0.62308704,879.43,877.79,0.19764529]
[1757368433816,0.62308704,879.42,877.79,0.19764529]
[1757368434016,0.62308704,879.41,877.79,0.19764529]
[1757368434211,0.62308704,879.4,877.79,0.19764529]
[1757368434414,0.62308704,879.39,877.79,0.19764529]
[1757368434711,0.62308704,879.38,877.79,0.19764529]
[1757368434912,0.62308704,879.37,877.79,0.19764529]
[1757368435111,0.62308704,879.36,877.79,0.19764529]
[1757368435410,1.5245857,879.68,877.79,0.19764529]
[1757368435411,0.62308704,879.35,877.79,0.19764529]
[1757368435615,0.62308704,879.34,877.79,0.19764529]
[1757368435809,0.62308704,879.33,877.79,0.19764529]
[1757368436011,1.5245857,879.69,877.79,0.19764529]
[1757368436213,0.62326064,879.68,877.79,0.19764529]
[1757368436411,0.62326064,879.67,877.79,1.71488089]
[1757368436611,0.62326064,879.66,877.79,1.71488089]
[1757368436914,0.62326064,879.65,877.79,1.71488089]
[1757368437110,0.62326064,879.64,877.79,1.71488089]
[1757368437412,0.62326064,879.63,877.79,1.71488089]
[1757368437615,0.62326064,879.62,877.79,1.71488089]
[1757368437812,0.62326064,879.61,877.79,1.71488089]
[1757368438117,0.62326064,879.6,877.79,1.71488089]
[1757368438316,0.62326064,879.59,877.79,1.71488089]
[1757368438514,0.62326064,879.58,877.79,1.71488089]
[1757368438719,0.62326064,879.57,877.79,1.71488089]
[1757368438917,0.62326064,879.56,877.79,1.71488089]
[1757368439118,0.62326064,879.55,877.79,1.71488089]
[1757368439317,0.62326064,879.54,877.8,1.5172356]
[1757368439517,0.62326064,879.53,877.8,1.5172356]
[1757368439717,0.62326064,879.52,877.8,1.5172356]
[1757368439919,0.62326064,879.51,877.8,1.5172356]
[1757368440118,0.62326064,879.5,877.8,1.5172356]
[1757368440318,0.62326064,879.49,877.81,1.5172356]
[1757368440521,0.62326064,879.48,877.81,1.5172356]
[1757368440821,0.62326064,879.47,877.81,1.5172356]
[1757368441018,0.62326064,879.46,877.81,1.5172356]
[1757368441217,0.62326064,879.46,877.79,0.19764529]
[1757368441218,0.62326064,879.45,877.82,1.5172356]
[1757368441414,0.62326064,879.44,877.82,1.5172356]
[1757368441618,0.62326064,879.43,877.82,1.5172356]
[1757368441817,0.62326064,879.42,877.82,1.5172356]
[1757368442017,0.62326064,879.41,877.82,1.5172356]
[1757368442221,0.62326064,879.4,877.83,1.5172356]
[1757368442422,0.62326064,879.39,877.83,1.5172356]
[1757368442719,0.62326064,879.38,877.86,1.5172356]
[1757368443019,0.62326064,879.37,877.86,1.5172356]
[1757368443236,0.62326064,879.36,877.86,1.5172356]
[1757368443423,0.62326064,879.35,877.91,1.5172356]
[1757368443620,1.5245857,879.53,877.92,1.5172356]
[1757368443621,0.62326064,879.34,877.92,1.5172356]
[1757368443924,0.62326064,879.33,877.94,1.5172356]
[1757368444124,1.5245857,879.54,877.91,1.5172356]
[1757368444321,2.1496258,879.53,877.91,1.5172356]
[1757368444522,0.6250401,879.52,877.91,1.5172356]
[1757368444721,0.6250401,879.51,877.92,1.5172356]
[1757368444919,0.6250401,879.5,877.92,1.5172356]
[1757368445125,1.5245857,879.46,877.98,1.5172356]
[1757368445421,0.6250401,879.45,877.98,1.5172356]
[1757368445622,0.6250401,879.44,877.98,1.5172356]
[1757368445821,0.6250401,879.43,877.98,1.5172356]
[1757368446122,0.6250401,879.42,877.99,1.5172356]
[1757368446424,0.6250401,879.41,877.99,1.5172356]
[1757368446625,0.6250401,879.4,877.99,1.5172356]
[1757368446830,0.6250401,879.39,877.99,1.5172356]
[1757368447026,0.6250401,879.38,878.04,1.5172356]
[1757368447223,0.6250401,879.37,878.02,1.5172356]
[1757368447428,0.6250401,879.36,878.02,1.5172356]
[1757368447624,0.6250401,879.35,878.02,1.5172356]
[1757368447826,0.6250401,879.34,878.02,1.5172356]
[1757368448025,0.6250401,879.33,878.02,1.5172356]
[1757368448228,1.5245857,879.41,878.03,1.5172356]
[1757368448425,0.6254712,879.4,878.03,1.5172356]
[1757368448725,0.6254712,879.39,878.03,1.5172356]
[1757368449028,0.6254712,879.38,878.03,1.5172356]
[1757368449226,0.6254712,879.37,878.03,1.5172356]
[1757368449430,0.6254712,879.36,878.02,1.5172356]
[1757368449629,0.6254712,879.35,878.02,1.5172356]
[1757368449829,0.6254712,879.34,878.02,1.5172356]
[1757368450028,0.6254712,879.33,878.02,1.5172356]
[1757368450231,1.5245857,879.42,878.02,1.5172356]
[1757368450528,0.62558591,879.41,878.02,1.5172356]
[1757368450732,0.62558591,879.4,878.02,1.5172356]
[1757368450928,1.5245857,879.42,878.02,1.5172356]
[1757368450929,0.62558591,879.39,878.02,1.5172356]
[1757368451132,0.62558591,879.38,878.02,1.5172356]
[1757368451433,0.62558591,879.37,878.02,1.5172356]
[1757368451627,0.62558591,879.36,878.02,1.5172356]
[1757368451928,1.5245857,879.42,878.02,1.5172356]
[1757368451929,0.62558591,879.35,878.02,1.5172356]
[1757368452232,0.62558591,879.34,878.02,1.5172356]
[1757368452532,0.62558591,879.33,878.02,1.5172356]
[1757368452733,1.5245857,879.42,878.02,1.5172356]
[1757368452931,0.62558023,879.41,878.02,1.5172356]
[1757368453129,0.62558023,879.4,878.01,1.5172356]
[1757368453330,0.62558023,879.39,878.02,1.5172356]
[1757368453531,0.62558023,879.38,878.02,1.5172356]
[1757368453732,0.62558023,879.37,878.02,1.5172356]
[1757368453933,0.62558023,879.36,878.04,1.5172356]
[1757368454133,0.62558023,879.35,878.04,1.5172356]
[1757368454333,0.62558023,879.34,878.04,1.5172356]
[1757368454533,0.62558023,879.33,878.04,1.5172356]
[1757368454732,1.5245857,879.59,877.88,1.5172356]
[1757368454936,2.15016082,879.58,877.88,1.5172356]
[1757368455134,0.62557512,879.57,877.88,1.5172356]
[1757368455334,1.5245857,879.58,877.88,1.5172356]
[1757368455335,0.62557512,879.56,877.88,1.5172356]
[1757368455633,0.62557512,879.55,877.88,1.5172356]
[1757368455834,0.62557512,879.54,877.88,1.5172356]
[1757368456034,0.62557512,879.53,877.88,1.5172356]
[1757368456238,0.62557512,879.52,877.88,1.5172356]
[1757368456437,0.62557512,879.51,877.88,1.5172356]
[1757368456638,0.62557512,879.5,877.88,1.5172356]
[1757368456938,0.62557512,879.49,877.89,1.5172356]
[1757368457235,0.62557512,879.48,877.89,1.5172356]